bitfinex/quotes_BTCUSD_20250610
["timestamp","ask_amount","ask_price","bid_price","bid_amount"]
[1749544765030,0.59392309,109240.0,109230.0,0.48610468]
[1749544765654,0.59392309,109240.0,109230.0,0.0861047]
[1749544766259,0.59392309,109240.0,109230.0,0.4861047]
[1749544767816,0.59392309,109240.0,109230.0,0.46895972]
[1749544768265,0.59392309,109240.0,109230.0,0.48610469]
[1749544768706,0.59392309,109240.0,109230.0,0.45245972]
[1749544768888,0.59392309,109240.0,109230.0,0.46960469]
[1749544769119,0.59392309,109240.0,109230.0,0.04456469]
[1749544769327,0.59392309,109240.0,109230.0,0.04456617]
[1749544769554,0.61002309,109240.0,109230.0,0.06960617]
[1749544769762,0.62642309,109240.0,109230.0,0.06960688]
[1749544769963,0.62642309,109240.0,109230.0,0.02512891]
[1749544770167,0.62642309,109240.0,109230.0,0.04227647]
[1749544770362,0.62642309,109240.0,109230.0,0.02512891]
[1749544770596,0.62642309,109240.0,109230.0,0.04227651]
[1749544771016,0.61002309,109240.0,109230.0,0.04227651]
[1749544771221,0.61002309,109240.0,109230.0,0.04227778]
[1749544771675,0.002,109240.0,109230.0,0.08761863]
[1749544771900,0.002,109270.0,109260.0,0.0308]
[1749544772150,0.002,109270.0,109260.0,0.8407659]
[1749544772606,0.002,109270.0,109260.0,1.29074827]
[1749544772620,0.002,109270.0,109260.0,1.39130317]
[1749544772830,0.002,109290.0,109280.0,0.0309]
[1749544772831,0.01114929,109290.0,109280.0,0.0309]
[1749544773037,0.01114929,109290.0,109280.0,0.21973326]
[1749544773038,0.02029867,109290.0,109280.0,0.21973326]
[1749544773249,0.02944821,109290.0,109280.0,0.22615861]
[1749544773479,0.0294483,109290.0,109280.0,0.21973048]
[1749544773708,0.21244865,109290.0,109280.0,0.2090214]
[1749544773924,0.21244865,109290.0,109280.0,0.25613163]
[1749544774135,0.20378435,109290.0,109280.0,0.20787553]
[1749544774557,0.20378435,109290.0,109280.0,0.20887553]
[1749544774779,0.20378435,109290.0,109280.0,0.21259279]
[1749544774986,0.54378435,109290.0,109280.0,0.23500735]
[1749544775195,0.54378435,109290.0,109280.0,0.2179786]
[1749544775416,0.54378435,109290.0,109280.0,0.23800769]
[1749544775615,0.54378435,109290.0,109280.0,0.21559279]
[1749544775828,0.54378435,109290.0,109280.0,0.59522044]
[1749544776089,0.54378435,109290.0,109280.0,0.60360632]
[1749544776724,0.54378435,109290.0,109280.0,0.60360645]
[1749544776935,0.54378435,109290.0,109280.0,0.60360643]
[1749544777172,0.54378435,109290.0,109280.0,0.58657734]
[1749544777381,0.54378435,109290.0,109280.0,0.58019145]
[1749544777601,0.54378435,109290.0,109280.0,0.60360679]
[1749544777811,0.54378435,109290.0,109280.0,0.60359643]
[1749544778018,0.54378435,109290.0,109280.0,0.58019145]
[1749544778232,0.54378435,109290.0,109280.0,0.58656651]
[1749544778472,0.54378435,109290.0,109280.0,0.58656644]
[1749544778724,0.54378435,109290.0,109280.0,0.55928975]
[1749544778925,0.54378435,109290.0,109280.0,0.55928981]
[1749544779177,0.20378435,109290.0,109280.0,0.55291476]
[1749544779405,0.20378435,109290.0,109280.0,0.55928982]
[1749544779850,0.20378435,109290.0,109280.0,0.55291476]
[1749544780064,0.20378435,109290.0,109280.0,0.55928663]
[1749544780501,0.20378435,109290.0,109280.0,0.55928662]
[1749544780721,0.20378435,109290.0,109280.0,0.55928661]
[1749544780940,0.20378435,109290.0,109280.0,0.55291476]
[1749544781156,0.20378435,109290.0,109280.0,0.56850763]
[1749544781370,0.20378435,109290.0,109280.0,0.44850763]
[1749544781620,0.20378435,109290.0,109280.0,0.43330763]
[1749544781854,0.20378435,109290.0,109280.0,0.52004]
[1749544782079,0.20378435,109290.0,109280.0,0.52641103]
[1749544782342,0.20378435,109290.0,109280.0,0.52004]
[1749544782794,0.20378435,109290.0,109280.0,0.51804]
[1749544783226,0.20378435,109290.0,109280.0,0.51904]
[1749544783705,0.20378435,109290.0,109280.0,0.51604]
[1749544784187,0.20378435,109290.0,109280.0,0.51704]
[1749544784865,0.20378435,109290.0,109280.0,0.11704]
[1749544785304,0.20378435,109290.0,109280.0,0.51704]
[1749544785964,0.20378435,109290.0,109280.0,0.492]
[1749544786202,0.20378435,109290.0,109280.0,0.517]
[1749544788415,0.20378435,109290.0,109280.0,0.117]
[1749544788861,0.20378435,109290.0,109280.0,0.492]
[1749544789080,0.20378435,109290.0,109280.0,0.51704]
[1749544789931,0.20378435,109290.0,109280.0,0.492]
[1749544790415,0.20378435,109290.0,109280.0,0.51704]
[1749544790624,0.20378435,109290.0,109280.0,0.492]
[1749544790829,0.20378435,109290.0,109280.0,0.51704]
[1749544791899,0.20378435,109290.0,109280.0,0.11704]
[1749544792328,0.20378435,109290.0,109280.0,0.51704]
[1749544794665,0.20378435,109290.0,109280.0,0.52341774]
[1749544795390,0.20378435,109290.0,109280.0,0.12341774]
[1749544795825,0.20378435,109290.0,109280.0,0.52341774]
[1749544796794,0.20378435,109290.0,109280.0,0.54522119]
[1749544797525,0.20378435,109290.0,109280.0,0.54522439]
[1749544798087,0.20378435,109290.0,109280.0,0.53884345]
[1749544798329,0.20378435,109290.0,109280.0,0.54522439]
[1749544798573,0.20378435,109290.0,109280.0,0.53884345]
[1749544798823,0.20378435,109290.0,109280.0,0.14522439]
[1749544799072,0.20378435,109290.0,109280.0,0.12342094]
[1749544799313,0.20378435,109290.0,109280.0,0.52342094]
[1749544799574,0.20378435,109290.0,109280.0,0.54523485]
[1749544799836,0.20378435,109290.0,109280.0,0.53884345]
[1749544800112,0.20378435,109290.0,109280.0,0.54523485]
[1749544800379,0.20378435,109290.0,109280.0,0.53884345]
[1749544800644,0.29830435,109290.0,109280.0,0.54523485]
[1749544800877,0.29830435,109290.0,109280.0,0.57251142]
[1749544801122,0.29830435,109290.0,109280.0,0.57254119]
[1749544801338,0.29830435,109290.0,109280.0,0.57254121]
[1749544801775,0.29830435,109290.0,109280.0,0.60252148]
[1749544802214,0.29830435,109290.0,109280.0,0.60894301]
[1749544802420,0.29830435,109290.0,109280.0,0.20894301]
[1749544802831,0.29830435,109290.0,109280.0,0.60894301]
[1749544803047,0.29830435,109290.0,109280.0,0.60252148]
[1749544803271,0.29830435,109290.0,109280.0,0.60894048]
[1749544803915,0.29830435,109290.0,109280.0,0.60894052]
[1749544804561,0.29830435,109290.0,109280.0,0.60894055]
[1749544804772,0.29830435,109290.0,109280.0,0.60252148]
[1749544805441,0.29830435,109290.0,109280.0,0.60894245]
[1749544805652,0.29830435,109290.0,109280.0,0.60252148]
[1749544805857,0.29830435,109290.0,109280.0,0.20894249]
[1749544806284,0.29830435,109290.0,109280.0,0.60252148]
[1749544806490,0.29830435,109290.0,109280.0,0.60894247]
[1749544806712,0.29830435,109290.0,109280.0,0.62424247]
[1749544806941,0.29830435,109290.0,109280.0,0.62424248]
[1749544807586,0.29830435,109290.0,109280.0,0.61782148]
[1749544807810,0.29830435,109290.0,109280.0,0.624246]
[1749544808058,0.29830435,109290.0,109280.0,0.62424612]
[1749544808506,0.29830435,109290.0,109280.0,0.62424648]
[1749544809006,0.29818435,109290.0,109280.0,0.62424648]
[1749544809218,0.29818435,109290.0,109280.0,0.61782148]
[1749544809425,0.29818435,109290.0,109280.0,0.22424648]
[1749544809653,0.29818435,109290.0,109280.0,0.19696979]
[1749544809856,0.29818435,109290.0,109280.0,0.59696979]
[1749544810506,0.29818435,109290.0,109280.0,0.59054479]
[1749544810718,0.29818435,109290.0,109280.0,0.5969698]
[1749544811129,0.29818435,109290.0,109280.0,0.59054479]
[1749544811343,0.29818435,109290.0,109280.0,0.59696979]
[1749544811756,0.29818435,109290.0,109280.0,0.65165533]
[1749544812625,0.29818435,109290.0,109280.0,0.65165534]
[1749544813353,0.29818435,109290.0,109280.0,0.65165541]
[1749544813832,0.29818435,109290.0,109280.0,0.6452263]
[1749544814553,0.29818435,109290.0,109280.0,0.65165541]
[1749544814781,0.29818435,109290.0,109280.0,0.62985196]
[1749544815681,0.29818435,109290.0,109280.0,0.6298522]
[1749544815934,0.29802435,109290.0,109280.0,0.62985218]
[1749544816182,0.29802435,109290.0,109280.0,0.62985217]
[1749544816400,0.29802435,109290.0,109280.0,0.62342285]
[1749544816611,0.29802435,109290.0,109280.0,0.62985215]
[1749544816826,0.29802435,109290.0,109280.0,0.62342285]
[1749544817068,0.29802435,109290.0,109280.0,0.62985215]
[1749544817716,0.29802435,109290.0,109280.0,0.62985244]
[1749544817931,0.29802435,109290.0,109280.0,0.62342285]
[1749544818137,0.29802435,109290.0,109280.0,0.62985244]
[1749544818581,0.20378435,109290.0,109280.0,0.64635243]
[1749544818799,0.29794435,109290.0,109280.0,0.64635243]
[1749544819454,0.29794435,109290.0,109280.0,0.64635251]
[1749544819897,0.29794435,109290.0,109280.0,0.63992285]
[1749544820120,0.29794435,109290.0,109280.0,0.62342285]
[1749544820339,0.29794435,109290.0,109280.0,0.62985251]
[1749544821073,0.29794435,109290.0,109280.0,0.62342285]
[1749544821281,0.29794435,109290.0,109280.0,0.62985251]
[1749544822973,0.29794435,109290.0,109280.0,0.62985255]
[1749544823187,0.29794435,109290.0,109280.0,0.22985255]
[1749544823397,0.29794435,109290.0,109280.0,0.22985254]
[1749544823601,0.29794435,109290.0,109280.0,0.62985254]
[1749544823811,0.29794435,109290.0,109280.0,0.65179918]
[1749544824655,0.29794435,109290.0,109280.0,0.65179919]
[1749544825076,0.29794435,109290.0,109280.0,0.64536949]
[1749544825282,0.29794435,109290.0,109280.0,0.65179921]
[1749544825920,0.02078484,109290.0,109280.0,0.66819921]
[1749544826137,0.02078484,109290.0,109280.0,0.71962041]
[1749544826138,0.20378402,109290.0,109280.0,0.71962041]
[1749544826357,0.22208344,109290.0,109280.0,0.73767532]
[1749544826570,0.01163454,109290.0,109280.0,0.33767532]
[1749544826792,0.03908359,109290.0,109280.0,0.31572868]
[1749544827012,0.02993354,109290.0,109280.0,0.32215102]
[1749544827220,0.23123315,109290.0,109280.0,0.72215076]
[1749544827429,0.23123315,109290.0,109280.0,0.7221507]
[1749544827652,0.03908384,109290.0,109280.0,0.7221507]
[1749544827865,0.03908384,109290.0,109280.0,0.72215069]
[1749544828561,0.03908384,109290.0,109280.0,0.72215071]
[1749544828767,0.03908384,109290.0,109280.0,0.71572868]
[1749544829196,0.03908384,109290.0,109280.0,0.73140284]
[1749544829630,0.03908384,109290.0,109280.0,0.65849416]
[1749544829846,0.03908384,109290.0,109280.0,0.65848984]
[1749544830055,0.0482338,109290.0,109280.0,0.6520724]
[1749544830265,0.0482338,109290.0,109280.0,0.65848981]
[1749544830475,0.22208369,109290.0,109280.0,0.64923746]
[1749544830683,0.21293415,109290.0,109280.0,0.5237]
[1749544830891,0.21293415,109290.0,109280.0,0.64895745]
[1749544831305,0.21293415,109290.0,109280.0,0.64895748]
[1749544831933,0.21293415,109290.0,109280.0,0.64895694]
[1749544832159,0.21293415,109290.0,109280.0,0.64254]
[1749544832384,0.21293415,109290.0,109280.0,0.64895694]
[1749544832805,0.21293415,109290.0,109280.0,0.64254]
[1749544833220,0.21293415,109290.0,109280.0,0.64895695]
[1749544833474,0.20378452,109290.0,109280.0,0.5237]
[1749544833696,0.20378452,109290.0,109280.0,0.69724444]
[1749544833905,0.20378452,109290.0,109280.0,0.70366139]
[1749544834348,0.20378452,109290.0,109280.0,0.70366137]
[1749544834559,0.20378452,109290.0,109280.0,0.70366117]
[1749544834772,0.20378452,109290.0,109280.0,0.70366116]
[1749544834987,0.20378452,109290.0,109280.0,0.69724444]
[1749544835200,0.20378452,109290.0,109280.0,0.7036611]
[1749544835411,0.20378452,109290.0,109280.0,0.70366124]
[1749544835618,0.19924452,109290.0,109280.0,0.69724444]
[1749544836066,0.19924452,109290.0,109280.0,0.7036616]
[1749544836290,0.19924452,109290.0,109280.0,0.69724444]
[1749544836501,0.19924452,109290.0,109280.0,0.70366161]
[1749544836708,0.19924452,109290.0,109280.0,0.69724444]
[1749544836916,0.19924452,109290.0,109280.0,0.70366162]
[1749544837555,0.19924452,109290.0,109280.0,0.69724444]
[1749544837761,0.19924452,109290.0,109280.0,0.7036616]
[1749544838187,0.19924452,109290.0,109280.0,0.70365928]
[1749544838614,0.19924452,109290.0,109280.0,0.70365917]
[1749544839037,0.19924452,109290.0,109280.0,0.69724444]
[1749544839249,0.19924452,109290.0,109280.0,0.70365917]
[1749544839459,0.19924452,109290.0,109280.0,0.69724444]
[1749544839673,0.19214931,109290.0,109280.0,0.69716444]
[1749544839920,0.19214931,109290.0,109280.0,0.57844444]
[1749544840149,0.19214931,109290.0,109280.0,0.69716444]
[1749544840365,0.19214931,109290.0,109280.0,0.70357918]
[1749544840793,0.19214931,109290.0,109280.0,0.57844444]
[1749544841006,0.19214931,109290.0,109280.0,0.70357918]
[1749544841233,0.19214931,109290.0,109280.0,0.69716444]
[1749544841472,0.19214931,109290.0,109280.0,0.5848592]
[1749544841701,0.19214931,109290.0,109280.0,0.70357921]
[1749544842264,0.53214931,109290.0,109280.0,0.69716444]
[1749544843214,0.53214931,109290.0,109280.0,0.70357917]
[1749544843426,0.53214931,109290.0,109280.0,0.69716444]
[1749544843632,0.53214931,109290.0,109280.0,0.70357931]
[1749544844095,0.19214931,109290.0,109280.0,0.69716444]
[1749544844311,0.19214931,109290.0,109280.0,0.70357922]
[1749544844518,0.19214931,109290.0,109280.0,0.70357925]
[1749544844733,0.19214931,109290.0,109280.0,0.57844444]
[1749544844944,0.19214931,109290.0,109280.0,0.69716444]
[1749544845163,0.19214931,109290.0,109280.0,0.7035794]
[1749544845387,0.19214931,109290.0,109280.0,0.70357944]
[1749544845599,0.19214931,109290.0,109280.0,0.69716444]
[1749544846205,0.19214931,109290.0,109280.0,0.70357945]
[1749544846445,0.19214931,109290.0,109280.0,0.70357944]
[1749544846653,0.19214931,109290.0,109280.0,0.69716444]
[1749544847073,0.19214931,109290.0,109280.0,0.70357944]
[1749544847281,0.19214931,109290.0,109280.0,0.69716444]
[1749544847744,0.19214931,109290.0,109280.0,0.70357945]
[1749544847981,0.19214931,109290.0,109280.0,0.70357947]
[1749544848247,0.19214931,109290.0,109280.0,0.70357948]
[1749544848456,0.19214931,109290.0,109280.0,0.70357949]
[1749544848676,0.19214931,109290.0,109280.0,0.70357979]
[1749544848924,0.19214931,109290.0,109280.0,0.70357978]
[1749544849118,0.19214931,109290.0,109280.0,0.70357977]
[1749544849334,0.19214931,109290.0,109280.0,0.69716444]
[1749544849604,0.19214931,109290.0,109280.0,0.67179981]
[1749544849844,0.19214931,109290.0,109280.0,0.66538444]
[1749544850088,0.19214931,109290.0,109280.0,0.67180049]
[1749544850330,0.19214931,109290.0,109280.0,0.67180043]
[1749544850771,0.19214931,109290.0,109280.0,0.67180044]
[1749544850990,0.19214931,109290.0,109280.0,0.67180046]
[1749544851214,0.19214931,109290.0,109280.0,0.67180045]
[1749544851685,0.19214931,109290.0,109280.0,0.67180178]
[1749544851902,0.19214931,109290.0,109280.0,0.66538444]
[1749544852128,0.19214931,109290.0,109280.0,0.67180178]
[1749544852579,0.19214931,109290.0,109280.0,0.27180178]
[1749544852803,0.22374931,109290.0,109280.0,0.21429168]
[1749544853024,0.22374931,109290.0,109280.0,0.61429251]
[1749544853889,0.22374931,109290.0,109280.0,0.61429319]
[1749544854329,0.22374931,109290.0,109280.0,0.60787434]
[1749544854548,0.22374931,109290.0,109280.0,0.61429619]
[1749544854764,0.22374931,109290.0,109280.0,0.61429616]
[1749544854981,0.22374931,109290.0,109280.0,0.60787434]
[1749544855200,0.31778931,109290.0,109280.0,0.61429618]
[1749544855419,0.31778931,109290.0,109280.0,0.60787434]
[1749544856080,0.31778931,109290.0,109280.0,0.20787434]
[1749544856284,0.31778931,109290.0,109280.0,0.21429545]
[1749544856504,0.31778931,109290.0,109280.0,0.61429545]
[1749544856928,0.31778931,109290.0,109280.0,0.60787434]
[1749544857136,0.31778931,109290.0,109280.0,0.61429544]
[1749544857344,0.31778931,109290.0,109280.0,0.61429542]
[1749544857553,0.31778931,109290.0,109280.0,0.60787434]
[1749544857769,0.31778931,109290.0,109280.0,0.61429539]
[1749544857994,0.19214931,109290.0,109280.0,0.60787434]
[1749544858217,0.19214931,109290.0,109280.0,0.63079479]
[1749544858417,0.19214931,109290.0,109280.0,0.63079483]
[1749544858630,0.19214931,109290.0,109280.0,0.62437434]
[1749544858839,0.19214931,109290.0,109280.0,0.63079484]
[1749544859116,0.19214931,109290.0,109280.0,0.63079483]
[1749544859330,0.19214931,109290.0,109280.0,0.63079482]
[1749544859764,0.19214931,109290.0,109280.0,0.62437434]
[1749544860386,0.19214931,109290.0,109280.0,0.63079356]
[1749544860814,0.19214931,109290.0,109280.0,0.62437434]
[1749544861232,0.19214931,109290.0,109280.0,0.6307928]
[1749544861656,0.19214931,109290.0,109280.0,0.62437434]
[1749544862297,0.19214931,109290.0,109280.0,0.63079279]
[1749544862496,0.19214931,109290.0,109280.0,0.62437434]
[1749544862717,0.19214931,109290.0,109280.0,0.63079262]
[1749544862924,0.19214931,109290.0,109280.0,0.63079239]
[1749544863143,0.19214931,109290.0,109280.0,0.63079237]
[1749544863367,0.19214931,109290.0,109280.0,0.62437434]
[1749544864265,0.19214931,109290.0,109280.0,0.6307921]
[1749544864488,0.19214931,109290.0,109280.0,0.62437434]
[1749544864707,0.19214931,109290.0,109280.0,0.63079208]
[1749544864927,0.19214931,109290.0,109280.0,0.63079209]
[1749544865143,0.19214931,109290.0,109280.0,0.62437434]
[1749544865389,0.19214931,109290.0,109280.0,0.63079209]
[1749544865591,0.19214931,109290.0,109280.0,0.62437434]
[1749544865813,0.19214931,109290.0,109280.0,0.63079209]
[1749544866240,0.19214931,109290.0,109280.0,0.62437434]
[1749544866629,0.19214931,109290.0,109280.0,0.6307921]
[1749544866869,0.19214931,109290.0,109280.0,0.62437434]
[1749544867292,0.19214931,109290.0,109280.0,0.6307921]
[1749544867905,0.19214931,109290.0,109280.0,0.63079066]
[1749544868110,0.19214931,109290.0,109280.0,0.63079053]
[1749544868325,0.19214931,109290.0,109280.0,0.62437434]
[1749544869428,0.19214931,109290.0,109280.0,0.71841434]
[1749544869672,0.19214931,109290.0,109280.0,0.73461434]
[1749544870150,0.19214931,109290.0,109280.0,0.74103033]
[1749544870379,0.19214931,109290.0,109280.0,0.72483032]
[1749544870605,0.19214931,109290.0,109280.0,0.68830042]
[1749544871009,0.19214931,109290.0,109280.0,0.68188444]
[1749544871244,0.19214931,109290.0,109280.0,0.68830042]
[1749544871690,0.19214931,109290.0,109280.0,0.68830327]
[1749544872303,0.19214931,109290.0,109280.0,0.68830326]
[1749544873580,0.19214931,109290.0,109280.0,0.68188444]
[1749544873786,0.19214931,109290.0,109280.0,0.68830918]
[1749544874241,0.19214931,109290.0,109280.0,0.68188444]
[1749544874445,0.19214931,109290.0,109280.0,0.68830918]
[1749544876157,0.19214931,109290.0,109280.0,0.68188444]
[1749544876363,0.19214931,109290.0,109280.0,0.68830919]
[1749544877287,0.19214931,109290.0,109280.0,0.68188444]
[1749544877508,0.19214931,109290.0,109280.0,0.68830919]
[1749544878023,0.19214931,109290.0,109280.0,0.6883092]
[1749544878269,0.19214931,109290.0,109280.0,0.68188444]
[1749544878713,0.19214931,109290.0,109280.0,0.6883092]
[1749544879130,0.19214931,109290.0,109280.0,0.68188444]
[1749544879366,0.19214931,109290.0,109280.0,0.6883092]
[1749544880021,0.19214931,109290.0,109280.0,0.68830939]
[1749544880226,0.19214931,109290.0,109280.0,0.68188444]
[1749544880440,0.19214931,109290.0,109280.0,0.68830939]
[1749544880646,0.19214931,109290.0,109280.0,0.68188444]
[1749544880855,0.19214931,109290.0,109280.0,0.68830943]
[1749544881314,0.19214931,109290.0,109280.0,0.68830942]
[1749544881999,0.19214931,109290.0,109280.0,0.68188444]
[1749544882223,0.19214931,109290.0,109280.0,0.68830942]
[1749544882445,0.19214931,109290.0,109280.0,0.68188444]
[1749544882652,0.19214931,109290.0,109280.0,0.68830942]
[1749544883159,0.19214931,109290.0,109280.0,0.68831136]
[1749544883364,0.19214931,109290.0,109280.0,0.68188444]
[1749544883809,0.19214931,109290.0,109280.0,0.68831136]
[1749544884019,0.19214931,109290.0,109280.0,0.59427137]
[1749544884227,0.19214931,109290.0,109280.0,0.66534444]
[1749544885504,0.19214931,109290.0,109280.0,0.67177137]
[1749544885770,0.19214931,109290.0,109280.0,0.67177176]
[1749544886005,0.19214931,109290.0,109280.0,0.67177172]
[1749544886295,0.19214931,109290.0,109280.0,0.6717717]
[1749544886573,0.19214931,109290.0,109280.0,0.67177168]
[1749544886837,0.19214931,109290.0,109280.0,0.66534444]
[1749544887633,0.19214931,109290.0,109280.0,0.67177169]
[1749544887876,0.19214931,109290.0,109280.0,0.66534444]
[1749544888283,0.19214931,109290.0,109280.0,0.67177169]
[1749544888699,0.19214931,109290.0,109280.0,0.66534444]
[1749544888910,0.19214931,109290.0,109280.0,0.67177169]
[1749544889116,0.19214931,109290.0,109280.0,0.66534444]
[1749544889318,0.19214931,109290.0,109280.0,0.6717717]
[1749544889496,0.19214931,109290.0,109280.0,0.66534444]
[1749544889748,0.19214931,109290.0,109280.0,0.67177168]
[1749544890182,0.19214931,109290.0,109280.0,0.66534444]
[1749544890396,0.19214931,109290.0,109280.0,0.67177177]
[1749544890596,0.19214931,109290.0,109280.0,0.67177178]
[1749544890801,0.19214931,109290.0,109280.0,0.66534444]
[1749544891015,0.19214931,109290.0,109280.0,0.67177178]
[1749544891239,0.19214931,109290.0,109280.0,0.68707178]
[1749544891450,0.19214931,109290.0,109280.0,0.68707177]
[1749544891663,0.19214931,109290.0,109280.0,0.68064444]
[1749544892511,0.19214931,109290.0,109280.0,0.68707177]
[1749544892930,0.19214931,109290.0,109280.0,0.68707176]
[1749544893348,0.19214931,109290.0,109280.0,0.68064444]
[1749544893553,0.19214931,109290.0,109280.0,0.68707176]
[1749544894788,0.19214931,109290.0,109280.0,0.68707165]
[1749544894998,0.19214931,109290.0,109280.0,0.68707167]
[1749544895204,0.19214931,109290.0,109280.0,0.68707165]
[1749544895410,0.19214931,109290.0,109280.0,0.68064444]
[1749544895830,0.19214931,109290.0,109280.0,0.70347166]
[1749544896040,0.19214931,109290.0,109280.0,0.70347127]
[1749544896464,0.19214931,109290.0,109280.0,0.70347128]
[1749544896665,0.19214931,109290.0,109280.0,0.70347127]
[1749544897083,0.19214931,109290.0,109280.0,0.69704444]
[1749544897295,0.19214931,109290.0,109280.0,0.70347128]
[1749544897728,0.19214931,109290.0,109280.0,0.70347122]
[1749544897933,0.19214931,109290.0,109280.0,0.69704444]
[1749544898136,0.19214931,109290.0,109280.0,0.70561344]
[1749544898347,0.19214931,109290.0,109280.0,0.70347118]
[1749544898558,0.19214931,109290.0,109280.0,0.71204014]
[1749544898772,0.19214931,109290.0,109280.0,0.70561341]
[1749544898972,0.19214931,109290.0,109280.0,0.71204014]
[1749544899179,0.19214931,109290.0,109280.0,0.69704444]
[1749544899403,0.19214931,109290.0,109280.0,0.70347117]
[1749544899611,0.19214931,109290.0,109280.0,0.70561341]
[1749544899818,0.19214931,109290.0,109280.0,0.70347117]
[1749544900032,0.19214931,109290.0,109280.0,0.66800638]
[1749544900252,0.19214931,109290.0,109280.0,0.6423]
[1749544900480,0.19214931,109290.0,109280.0,0.6744365]
[1749544900688,0.19214931,109290.0,109280.0,0.65086979]
[1749544900912,0.19214931,109290.0,109280.0,0.6572971]
[1749544901116,0.19214931,109290.0,109280.0,0.66800913]
[1749544901351,0.19214931,109290.0,109280.0,0.72163596]
[1749544901772,0.19214931,109290.0,109280.0,0.6572969]
[1749544901986,0.19214931,109290.0,109280.0,0.67443622]
[1749544902414,0.19214931,109290.0,109280.0,0.66800944]
[1749544902641,0.19214931,109290.0,109280.0,0.65729717]
[1749544902858,0.19214931,109290.0,109280.0,0.64872736]
[1749544903067,0.19214931,109290.0,109280.0,0.66800961]
[1749544903208,0.19214931,109290.0,109280.0,0.6423]
[1749544903426,0.19214931,109290.0,109280.0,0.66586722]
[1749544903668,0.19214931,109290.0,109280.0,0.67443712]
[1749544904030,0.19214931,109290.0,109280.0,0.67442038]
[1749544904235,0.19214931,109290.0,109280.0,0.65729104]
[1749544904459,0.19214931,109290.0,109280.0,0.67441409]
[1749544904656,0.19214931,109290.0,109280.0,0.66584419]
[1749544904905,0.19214931,109290.0,109280.0,0.67440575]
[1749544905244,0.19214931,109290.0,109280.0,0.64872115]
[1749544905434,0.19214931,109290.0,109280.0,0.65728268]
[1749544905708,0.19214931,109290.0,109280.0,0.65086153]
[1749544906100,0.19214931,109290.0,109280.0,0.65942308]
[1749544906304,0.19214931,109290.0,109280.0,0.65942309]
[1749544906510,0.19214931,109290.0,109280.0,0.65728269]
[1749544906715,0.19214931,109290.0,109280.0,0.65086154]
[1749544906924,0.19214931,109290.0,109280.0,0.65942309]
[1749544907117,0.19214931,109290.0,109280.0,0.66584425]
[1749544907291,0.19214931,109290.0,109280.0,0.67440579]
[1749544907709,0.19214931,109290.0,109280.0,0.66584425]
[1749544907908,0.19214931,109290.0,109280.0,0.66798463]
[1749544908310,0.19214931,109290.0,109280.0,0.6572827]
[1749544908638,0.19214931,109290.0,109280.0,0.64872116]
[1749544908793,0.19214931,109290.0,109280.0,0.6572827]
[1749544908993,0.19214931,109290.0,109280.0,0.65086154]
[1749544909388,0.19214931,109290.0,109280.0,0.67440041]
[1749544909593,0.19214931,109290.0,109280.0,0.67439846]
[1749544909823,0.18299935,109290.0,109280.0,0.67440036]
[1749544910055,0.18299935,109290.0,109280.0,0.64872112]
[1749544910266,0.18299935,109290.0,109280.0,0.67440473]
[1749544910648,0.18299935,109290.0,109280.0,0.63446126]
[1749544910859,0.18299935,109290.0,109280.0,0.65800474]
[1749544911058,0.18299935,109290.0,109280.0,0.6408822]
[1749544911262,0.18299935,109290.0,109280.0,0.63446126]
[1749544911478,0.18299935,109290.0,109280.0,0.65800472]
[1749544911701,0.18299935,109290.0,109280.0,0.63232094]
[1749544911926,0.18299935,109290.0,109280.0,0.65158355]
[1749544912154,0.18299935,109290.0,109280.0,0.65158356]
[1749544912422,0.18299935,109290.0,109280.0,0.64944321]
[1749544912653,0.18299935,109290.0,109280.0,0.65800466]
[1749544912880,0.18299935,109290.0,109280.0,0.68926375]
[1749544913104,0.18299935,109290.0,109280.0,0.71280731]
[1749544913316,0.18299935,109290.0,109280.0,0.68070246]
[1749544913531,0.18299935,109290.0,109280.0,0.71280731]
[1749544913738,0.18299935,109290.0,109280.0,0.70638634]
[1749544913942,0.18299935,109290.0,109280.0,0.69782508]
[1749544914159,0.18299935,109290.0,109280.0,0.71280737]
[1749544914363,0.18299935,109290.0,109280.0,0.65158357]
[1749544914572,0.18299935,109290.0,109280.0,0.63446119]
[1749544914785,0.18299935,109290.0,109280.0,0.6408821]
[1749544914994,0.18299935,109290.0,109280.0,0.63446119]
[1749544915193,0.18299935,109290.0,109280.0,0.6515836]
[1749544915406,0.18299935,109290.0,109280.0,0.2580045]
[1749544915619,0.18299935,109290.0,109280.0,0.2515836]
[1749544915826,0.18299935,109290.0,109280.0,0.2580045]
[1749544916033,0.18299935,109290.0,109280.0,0.6408821]
[1749544916248,0.18299935,109290.0,109280.0,0.6344612]
[1749544916382,0.18299935,109290.0,109280.0,0.65800452]
[1749544916595,0.18299935,109290.0,109280.0,0.65800453]
[1749544916798,0.18299935,109290.0,109280.0,0.64088211]
[1749544917000,0.18299935,109290.0,109280.0,0.64944333]
[1749544917200,0.18299935,109290.0,109280.0,0.65158362]
[1749544917471,0.18299935,109290.0,109280.0,0.64302241]
[1749544917697,0.18299935,109290.0,109280.0,0.65800451]
[1749544918356,0.18299935,109290.0,109280.0,0.64944331]
[1749544918488,0.18299935,109290.0,109280.0,0.65800665]
[1749544918716,0.18299935,109290.0,109280.0,0.64088424]
[1749544918938,0.18299935,109290.0,109280.0,0.65800909]
[1749544919139,0.18299935,109290.0,109280.0,0.64088424]
[1749544919302,0.18299935,109290.0,109280.0,0.63232182]
[1749544919510,0.18299935,109290.0,109280.0,0.65800909]
[1749544920150,0.18299935,109290.0,109280.0,0.64944667]
[1749544920347,0.18299935,109290.0,109280.0,0.65158727]
[1749544920791,0.18299935,109290.0,109280.0,0.63446242]
[1749544920996,0.18299935,109290.0,109280.0,0.64302488]
[1749544921228,0.18299935,109290.0,109280.0,0.65800915]
[1749544921647,0.18299935,109290.0,109280.0,0.65800913]
[1749544921851,0.18299935,109290.0,109280.0,0.7127425]
[1749544922051,0.18299935,109290.0,109280.0,0.70632095]
[1749544922177,0.18299935,109290.0,109280.0,0.57923958]
[1749544922570,0.18299935,109290.0,109280.0,0.71274652]
[1749544922784,0.18299935,109290.0,109280.0,0.6956195]
[1749544922985,0.18299935,109290.0,109280.0,0.68919677]
[1749544923199,0.18299935,109290.0,109280.0,0.71274667]
[1749544923405,0.52299935,109290.0,109280.0,0.71274667]
[1749544923647,0.53849935,109290.0,109280.0,0.60348667]
[1749544923864,0.55389935,109290.0,109280.0,0.61434847]
[1749544924316,0.52299935,109290.0,109280.0,0.58850508]
[1749544924536,0.52299935,109290.0,109280.0,0.59492869]
[1749544924747,0.52299935,109290.0,109280.0,0.59492763]
[1749544925418,0.52299935,109290.0,109280.0,0.57779711]
[1749544925636,0.52299935,109290.0,109280.0,0.59492604]
[1749544925855,0.52299935,109290.0,109280.0,0.59492587]
[1749544926065,0.52299935,109290.0,109280.0,0.58850242]
[1749544926251,0.52299935,109290.0,109280.0,0.57779664]
[1749544926495,0.52299935,109290.0,109280.0,0.59492593]
[1749544926724,0.52299935,109290.0,109280.0,0.19492593]
[1749544927168,0.52299935,109290.0,109280.0,0.59492593]
[1749544927384,0.53919935,109290.0,109280.0,0.59492593]